Workbook

Sheet 每月预算摘要
B1: 公司名称
B2: 每月预算 | E2: 日期
B4: 预算总额 | C4: 估算金额 | D4: 实际金额 | E4: 差额
B5: 收入 | C5: =收入[[#Totals],[估算金额]] -> 63,300.00 | D5: =收入[[#Totals],[实际金额]] -> 57,450.00 | E5: =合计[[#This Row],[实际金额]]-合计[[#This Row],[估算金额]] -> (5,850.00)
B6: 费用 | C6: =运营费用[[#Totals],[估算金额]]+人事费用[[#Totals],[估算金额]] -> 54,500.00 | D6: =运营费用[[#Totals],[实际金额]]+人事费用[[#Totals],[实际金额]] -> 49,630.00 | E6: =合计[[#This Row],[实际金额]]-合计[[#This Row],[估算金额]] -> (4,870.00)
B7: 余额（收入减支出） | C7: =C5-C6 -> 8,800.00 | D7: =D5-D6 -> 7,820.00 | E7: =合计[[#Totals],[实际金额]]-合计[[#Totals],[估算金额]] -> (980.00)
B9: 预算概览图位于此单元格中下方的“前 5 项费用”表中可自动更新前 5 项运营费用。
B10: 我司最高的 5 项运营费用有哪些？
B11: 费用 | C11: 金额 | D11: 占费用的百分比 | E11: 15% 缩减金额
B12: =INDEX(运营费用[],MATCH(Top5Expenses[[#This Row],[金额]],运营费用[前 5 项金额],0),1) -> 保养或修理费用 | C12: =LARGE(运营费用[前 5 项金额],1) -> 4,600.00 | D12: =Top5Expenses[[#This Row],[金额]]/$D$6 -> 9.3% | E12: =Top5Expenses[[#This Row],[金额]]*0.15 -> 690.00
B13: =INDEX(运营费用[],MATCH(Top5Expenses[[#This Row],[金额]],运营费用[前 5 项金额],0),1) -> 租金或按揭费用 | C13: =LARGE(运营费用[前 5 项金额],2) -> 4,500.00 | D13: =Top5Expenses[[#This Row],[金额]]/$D$6 -> 9.1% | E13: =Top5Expenses[[#This Row],[金额]]*0.15 -> 675.00
B14: =INDEX(运营费用[],MATCH(Top5Expenses[[#This Row],[金额]],运营费用[前 5 项金额],0),1) -> 日用品 | C14: =LARGE(运营费用[前 5 项金额],3) -> 4,500.00 | D14: =Top5Expenses[[#This Row],[金额]]/$D$6 -> 9.1% | E14: =Top5Expenses[[#This Row],[金额]]*0.15 -> 675.00
B15: =INDEX(运营费用[],MATCH(Top5Expenses[[#This Row],[金额]],运营费用[前 5 项金额],0),1) -> 税款 | C15: =LARGE(运营费用[前 5 项金额],4) -> 3,200.00 | D15: =Top5Expenses[[#This Row],[金额]]/$D$6 -> 6.4% | E15: =Top5Expenses[[#This Row],[金额]]*0.15 -> 480.00
B16: =INDEX(运营费用[],MATCH(Top5Expenses[[#This Row],[金额]],运营费用[前 5 项金额],0),1) -> 广告 | C16: =LARGE(运营费用[前 5 项金额],5) -> 2,500.00 | D16: =Top5Expenses[[#This Row],[金额]]/$D$6 -> 5.0% | E16: =Top5Expenses[[#This Row],[金额]]*0.15 -> 375.00
B17: 汇总 | C17: =SUBTOTAL(109,Top5Expenses[金额]) -> 19,300.00 | D17: =SUBTOTAL(109,Top5Expenses[占费用的百分比]) -> 38.9% | E17: =SUBTOTAL(109,Top5Expenses[15% 缩减金额]) -> 2,895.00

Sheet 收入
B1: =公司名称 -> 公司名称
B2: =BUDGET_Title -> 每月预算
B4: 收入 | C4: 估算金额 | D4: 实际金额 | E4: 前 5 项金额 | F4: 差额
B5: 净销售额 | C5: 60,000.00 | D5: 54,000.00 | E5: =收入[[#This Row],[实际金额]]+(10^-6)*ROW(收入[[#This Row],[实际金额]]) -> 54,000.00 | F5: =收入[[#This Row],[实际金额]]-收入[[#This Row],[估算金额]] -> (6,000.00)
B6: 利息收益 | C6: 3,000.00 | D6: 3,000.00 | E6: =收入[[#This Row],[实际金额]]+(10^-6)*ROW(收入[[#This Row],[实际金额]]) -> 3,000.00 | F6: =收入[[#This Row],[实际金额]]-收入[[#This Row],[估算金额]] -> 0.00
B7: 资产出售（损益） | C7: 300.00 | D7: 450.00 | E7: =收入[[#This Row],[实际金额]]+(10^-6)*ROW(收入[[#This Row],[实际金额]]) -> 450.00 | F7: =收入[[#This Row],[实际金额]]-收入[[#This Row],[估算金额]] -> 150.00
B8: 总收入 | C8: =SUBTOTAL(109,收入[估算金额]) -> 63,300.00 | D8: =SUBTOTAL(109,收入[实际金额]) -> 57,450.00 | F8: =SUBTOTAL(109,收入[差额]) -> (5,850.00)

Sheet 人事费用
B1: =公司名称 -> 公司名称
B2: =BUDGET_Title -> 每月预算
B4: 人事费用 | C4: 估算金额 | D4: 实际金额 | E4: 前 5 项金额 | F4: 差额
B5: 工资 | C5: 9,500.00 | D5: 9,600.00 | E5: =人事费用[[#This Row],[实际金额]]+(10^-6)*ROW(人事费用[[#This Row],[实际金额]]) -> 9,600.00 | F5: =人事费用[[#This Row],[估算金额]]-人事费用[[#This Row],[实际金额]] -> (100.00)
B6: 员工福利 | C6: 4,000.00 | D6: 0.00 | E6: =人事费用[[#This Row],[实际金额]]+(10^-6)*ROW(人事费用[[#This Row],[实际金额]]) -> 0.00 | F6: =人事费用[[#This Row],[估算金额]]-人事费用[[#This Row],[实际金额]] -> 4,000.00
B7: 佣金 | C7: 5,000.00 | D7: 4,500.00 | E7: =人事费用[[#This Row],[实际金额]]+(10^-6)*ROW(人事费用[[#This Row],[实际金额]]) -> 4,500.00 | F7: =人事费用[[#This Row],[估算金额]]-人事费用[[#This Row],[实际金额]] -> 500.00
B8: 人事总费用 | C8: =SUBTOTAL(109,人事费用[估算金额]) -> 18,500.00 | D8: =SUBTOTAL(109,人事费用[实际金额]) -> 14,100.00 | F8: =SUBTOTAL(109,人事费用[差额]) -> 4,400.00

Sheet 运营费用
B1: =公司名称 -> 公司名称
B2: =BUDGET_Title -> 每月预算
B4: 运营费用 | C4: 估算金额 | D4: 实际金额 | E4: 前 5 项金额 | F4: 差额
B5: 办公用品 | C5: 800.00 | D5: 750.00 | E5: =运营费用[[#This Row],[实际金额]]+(10^-6)*ROW(运营费用[[#This Row],[实际金额]]) -> 750.00 | F5: =运营费用[[#This Row],[估算金额]]-运营费用[[#This Row],[实际金额]] -> 50.00
B6: 保险 | C6: 1,300.00 | D6: 1,275.00 | E6: =运营费用[[#This Row],[实际金额]]+(10^-6)*ROW(运营费用[[#This Row],[实际金额]]) -> 1,275.00 | F6: =运营费用[[#This Row],[估算金额]]-运营费用[[#This Row],[实际金额]] -> 25.00
B7: 保养或修理费用 | C7: 4,500.00 | D7: 4,600.00 | E7: =运营费用[[#This Row],[实际金额]]+(10^-6)*ROW(运营费用[[#This Row],[实际金额]]) -> 4,600.00 | F7: =运营费用[[#This Row],[估算金额]]-运营费用[[#This Row],[实际金额]] -> (100.00)
B8: 呆帐 | C8: 2,000.00 | D8: 2,000.00 | E8: =运营费用[[#This Row],[实际金额]]+(10^-6)*ROW(运营费用[[#This Row],[实际金额]]) -> 2,000.00 | F8: =运营费用[[#This Row],[估算金额]]-运营费用[[#This Row],[实际金额]] -> 0.00
B9: 电话 | C9: 250.00 | D9: 280.00 | E9: =运营费用[[#This Row],[实际金额]]+(10^-6)*ROW(运营费用[[#This Row],[实际金额]]) -> 280.00 | F9: =运营费用[[#This Row],[估算金额]]-运营费用[[#This Row],[实际金额]] -> (30.00)
B10: 法务和审计费用 | C10: 1,000.00 | D10: 800.00 | E10: =运营费用[[#This Row],[实际金额]]+(10^-6)*ROW(运营费用[[#This Row],[实际金额]]) -> 800.00 | F10: =运营费用[[#This Row],[估算金额]]-运营费用[[#This Row],[实际金额]] -> 200.00
B11: 公共事业费用 | C11: 1,400.00 | D11: 1,385.00 | E11: =运营费用[[#This Row],[实际金额]]+(10^-6)*ROW(运营费用[[#This Row],[实际金额]]) -> 1,385.00 | F11: =运营费用[[#This Row],[估算金额]]-运营费用[[#This Row],[实际金额]] -> 15.00
B12: 广告 | C12: 3,000.00 | D12: 2,500.00 | E12: =运营费用[[#This Row],[实际金额]]+(10^-6)*ROW(运营费用[[#This Row],[实际金额]]) -> 2,500.00 | F12: =运营费用[[#This Row],[估算金额]]-运营费用[[#This Row],[实际金额]] -> 500.00
B13: 会费与订阅费 | C13: 500.00 | D13: 525.00 | E13: =运营费用[[#This Row],[实际金额]]+(10^-6)*ROW(运营费用[[#This Row],[实际金额]]) -> 525.00 | F13: =运营费用[[#This Row],[估算金额]]-运营费用[[#This Row],[实际金额]] -> (25.00)
B14: 利息 | C14: 2,000.00 | D14: 2,200.00 | E14: =运营费用[[#This Row],[实际金额]]+(10^-6)*ROW(运营费用[[#This Row],[实际金额]]) -> 2,200.00 | F14: =运营费用[[#This Row],[估算金额]]-运营费用[[#This Row],[实际金额]] -> (200.00)
B15: 配送成本 | C15: 2,000.00 | D15: 1,500.00 | E15: =运营费用[[#This Row],[实际金额]]+(10^-6)*ROW(运营费用[[#This Row],[实际金额]]) -> 1,500.00 | F15: =运营费用[[#This Row],[估算金额]]-运营费用[[#This Row],[实际金额]] -> 500.00
B16: 其他 | C16: 1,000.00 | D16: 750.00 | E16: =运营费用[[#This Row],[实际金额]]+(10^-6)*ROW(运营费用[[#This Row],[实际金额]]) -> 750.00 | F16: =运营费用[[#This Row],[估算金额]]-运营费用[[#This Row],[实际金额]] -> 250.00
B17: 日用品 | C17: 5,000.00 | D17: 4,500.00 | E17: =运营费用[[#This Row],[实际金额]]+(10^-6)*ROW(运营费用[[#This Row],[实际金额]]) -> 4,500.00 | F17: =运营费用[[#This Row],[估算金额]]-运营费用[[#This Row],[实际金额]] -> 500.00
B18: 税款 | C18: 3,000.00 | D18: 3,200.00 | E18: =运营费用[[#This Row],[实际金额]]+(10^-6)*ROW(运营费用[[#This Row],[实际金额]]) -> 3,200.00 | F18: =运营费用[[#This Row],[估算金额]]-运营费用[[#This Row],[实际金额]] -> (200.00)
B19: 现金折扣 | C19: 1,500.00 | D19: 2,175.00 | E19: =运营费用[[#This Row],[实际金额]]+(10^-6)*ROW(运营费用[[#This Row],[实际金额]]) -> 2,175.00 | F19: =运营费用[[#This Row],[估算金额]]-运营费用[[#This Row],[实际金额]] -> (675.00)
B20: 销售费用 | C20: 350.00 | D20: 400.00 | E20: =运营费用[[#This Row],[实际金额]]+(10^-6)*ROW(运营费用[[#This Row],[实际金额]]) -> 400.00 | F20: =运营费用[[#This Row],[估算金额]]-运营费用[[#This Row],[实际金额]] -> (50.00)
B21: 邮费 | C21: 400.00 | D21: 350.00 | E21: =运营费用[[#This Row],[实际金额]]+(10^-6)*ROW(运营费用[[#This Row],[实际金额]]) -> 350.00 | F21: =运营费用[[#This Row],[估算金额]]-运营费用[[#This Row],[实际金额]] -> 50.00
B22: 运费与储存费用 | C22: 900.00 | D22: 840.00 | E22: =运营费用[[#This Row],[实际金额]]+(10^-6)*ROW(运营费用[[#This Row],[实际金额]]) -> 840.00 | F22: =运营费用[[#This Row],[估算金额]]-运营费用[[#This Row],[实际金额]] -> 60.00
B23: 折旧 | C23: 1,000.00 | D23: 1,000.00 | E23: =运营费用[[#This Row],[实际金额]]+(10^-6)*ROW(运营费用[[#This Row],[实际金额]]) -> 1,000.00 | F23: =运营费用[[#This Row],[估算金额]]-运营费用[[#This Row],[实际金额]] -> 0.00
B24: 租金或按揭费用 | C24: 4,100.00 | D24: 4,500.00 | E24: =运营费用[[#This Row],[实际金额]]+(10^-6)*ROW(运营费用[[#This Row],[实际金额]]) -> 4,500.00 | F24: =运营费用[[#This Row],[估算金额]]-运营费用[[#This Row],[实际金额]] -> (400.00)
B25: 总运营费用 | C25: =SUBTOTAL(109,运营费用[估算金额]) -> 36,000.00 | D25: =SUBTOTAL(109,运营费用[实际金额]) -> 35,530.00 | F25: =SUBTOTAL(109,运营费用[差额]) -> 470.00
